fUST/lending_fUST_20260106
["ID","MTS","AMOUNT","RATE_DAILY","PERIOD"]
[400555408,1767714646353,-3709.10266379,0.00021622,2]
[400555409,1767714646363,-1000.0,0.00021819,10]
[400555410,1767714646374,-1000.0,0.00021819,10]
[400555411,1767714646384,-628.0,0.00021909,2]
[400555412,1767714646393,-1365.0,0.00021909,2]
[400555413,1767714646401,-2145.0,0.00021909,2]
[400555414,1767714646411,-417.0,0.00021909,2]
[400555415,1767714646420,-420.194198,0.00021918,2]
[400555417,1767714646430,-568.04960426,0.0002196,10]
[400555418,1767714646440,-151.0,0.0002196,2]
[400555419,1767714646449,-151.0,0.0002196,2]
[400555420,1767714646458,-151.0,0.0002196,2]
[400555421,1767714646467,-151.0,0.0002196,2]
[400555422,1767714646476,-735.173477,0.0002196,2]
[400555423,1767714646486,-735.173477,0.0002196,2]
[400555424,1767714646495,-301.0,0.00022,2]
[400555425,1767714646505,-812.81,0.00022,14]
[400555426,1767714646516,-171.82593853,0.00022,10]
[400555427,1767714646525,-19696.50350082,0.00022,7]
[400555428,1767714646535,-3289.6,0.00022,7]
[400555429,1767714646545,-84987.34441726,0.00022,2]
[400555430,1767714646555,-151.0,0.00022,2]
[400555431,1767714646564,-151.0,0.00022,2]
[400555432,1767714646574,-151.0,0.00022,2]
[400555433,1767714646583,-151.0,0.00022,2]
[400555435,1767714646592,-151.0,0.00022,2]
[400555437,1767714646601,-190.765907,0.00022,2]
[400555439,1767714646611,-194.712966,0.00022,2]
[400555441,1767714646619,-194.712966,0.00022,2]
[400555443,1767714646628,-194.712966,0.00022,2]
[400555445,1767714646638,-194.712966,0.00022,2]
[400555447,1767714646647,-151.0,0.00022,2]
[400555449,1767714646657,-151.0,0.00022,2]
[400555451,1767714646667,-151.0,0.00022,2]
[400555453,1767714646676,-151.0,0.00022,2]
[400555455,1767714646685,-200.0,0.00022,3]
[400555457,1767714646694,-200.0,0.00022,3]
[400555459,1767714646703,-200.0,0.00022,3]
[400555461,1767714646713,-200.0,0.00022,3]
[400555463,1767714646722,-200.0,0.00022,3]
[400555465,1767714646731,-200.0,0.00022,3]
[400555467,1767714646741,-269.991189,0.00022,2]
[400555468,1767714646750,-251.543708,0.00022,2]
[400555469,1767714646759,-251.543708,0.00022,2]
[400555470,1767714646768,-251.543708,0.00022,2]
[400555471,1767714646778,-251.543708,0.00022,2]
[400555473,1767714646787,-151.0,0.00022,2]
[400555474,1767714646797,-182.737192,0.00022,2]
[400555475,1767714646806,-151.0,0.00022,2]
[400555476,1767714646815,-151.0,0.00022,2]
[400555477,1767714646824,-151.0,0.00022,2]
[400555478,1767714646835,-179.970961,0.00022,2]
[400555479,1767714646844,-151.0,0.00022,2]
[400555480,1767714646853,-151.0,0.00022,2]
[400555481,1767714646863,-151.0,0.00022,2]
[400555482,1767714646875,-164.144536,0.00022,2]
[400555483,1767714646885,-151.0,0.00022,2]
[400555484,1767714646894,-164.144536,0.00022,2]
[400555485,1767714646904,-164.144536,0.00022,2]
[400555486,1767714646914,-164.144536,0.00022,2]
[400555487,1767714646924,-294.498012,0.00022,2]
[400555488,1767714646934,-181.542051,0.00022,2]
[400555489,1767714646944,-181.542051,0.00022,2]
[400555490,1767714646953,-154.400547,0.00022,2]
[400555491,1767714646963,-181.542051,0.00022,2]
[400555492,1767714646972,-181.542051,0.00022,2]
[400555493,1767714646981,-151.0,0.00022,2]
[400555494,1767714646990,-655.31642,0.00022,2]
[400555495,1767714646999,-655.31642,0.00022,2]
[400555496,1767714647009,-655.31642,0.00022,2]
[400555497,1767714647018,-655.31642,0.00022,2]
[400555498,1767714647027,-151.0,0.00022,2]
[400555499,1767714647137,-151.0,0.00022,2]
[400555500,1767714647147,-151.0,0.00022,2]
[400555501,1767714647156,-151.0,0.00022,2]
[400555502,1767714647166,-301.382551,0.00022,2]
[400555503,1767714647176,-151.0,0.00022,2]
[400555504,1767714647185,-409.150764,0.00022,2]
[400555505,1767714647195,-409.150764,0.00022,2]
[400555506,1767714647204,-409.150764,0.00022,2]
[400555507,1767714647213,-409.15076,0.00022,2]
[400555508,1767714647222,-545.251366,0.00022,2]
[400555509,1767714647232,-545.251366,0.00022,2]
[400555510,1767714647241,-545.251366,0.00022,2]
[400555511,1767714647250,-545.251366,0.00022,2]
[400555512,1767714647259,-280.749142,0.00022,2]
[400555513,1767714647269,-280.749142,0.00022,2]
[400555514,1767714647278,-280.749142,0.00022,2]
[400555515,1767714647288,-280.749142,0.00022,2]
[400555516,1767714647297,-269.170699,0.00022,2]
[400555517,1767714647306,-269.170699,0.00022,2]
[400555518,1767714647316,-269.170699,0.00022,2]
[400555519,1767714647325,-269.170699,0.00022,2]
[400555520,1767714647334,-151.0,0.00022,2]
[400555521,1767714647345,-193.586087,0.00022,2]
[400555522,1767714647354,-151.0,0.00022,2]
[400555523,1767714647364,-193.586087,0.00022,2]
[400555524,1767714647373,-151.0,0.00022,2]
[400555525,1767714647382,-193.586087,0.00022,2]
[400555526,1767714647392,-193.586087,0.00022,2]
[400555527,1767714647401,-151.0,0.00022,2]
[400555528,1767714647411,-151.0,0.00022,2]
[400555530,1767714647420,-618.008304,0.00022,2]
[400555532,1767714647429,-618.008304,0.00022,2]
[400555534,1767714647439,-618.008304,0.00022,2]
[400555536,1767714647449,-618.008304,0.00022,2]
[400555538,1767714647458,-5000.0,0.00022,2]
[400555539,1767714647468,-5000.0,0.00022,2]
[400555540,1767714647477,-5000.0,0.00022,2]
[400555541,1767714647487,-5000.0,0.00022,2]
[400555542,1767714647496,-176.786529,0.00022,2]
[400555544,1767714647505,-176.786529,0.00022,2]
[400555545,1767714647515,-176.786529,0.00022,2]
[400555546,1767714647524,-176.786529,0.00022,2]
[400555547,1767714647534,-151.0,0.00022,2]
[400555548,1767714647543,-151.0,0.00022,2]
[400555549,1767714647553,-2817.21,0.000221,14]
[400555550,1767714647563,-2000.0,0.00022107,7]
[400555552,1767714647572,-243.68363741,0.0002214,2]
[400555554,1767714647582,-3846.33946235,0.0002217,2]
[400555555,1767714647592,-1187.37523262,0.0002226,16]
[400555557,1767714647601,-282.75253431,0.00022318,2]
[400555558,1767714647611,-515.92926968,0.00022318,2]
[400555559,1767714647620,-433.48284904,0.00022318,2]
[400555560,1767714647629,-207.32345154,0.00022318,2]
[400555561,1767714647639,-274.33604987,0.00022318,2]
[400555562,1767714647648,-171.97642321,0.00022318,2]
[400555563,1767714647657,-26028.52,0.000224,2]
[400555564,1767714647667,-282.75253431,0.00022453,9]
[400555565,1767714647677,-433.48284904,0.00022453,9]
[400555566,1767714647686,-207.32345154,0.00022453,9]
[400555567,1767714647696,-515.92926968,0.00022453,9]
[400555568,1767714647706,-300.0,0.00022466,2]
[400555569,1767714647716,-272.36,0.000225,7]
[400555570,1767714647726,-320.04,0.000225,7]
[400555571,1767714647736,-274.33604987,0.00022587,17]
[400555572,1767714647745,-282.75253431,0.00022587,17]
[400555573,1767714647754,-433.48284904,0.00022587,17]
[400555574,1767714647764,-515.92926968,0.00022587,17]
[400555575,1767714647774,-207.32345154,0.00022587,17]
[400555576,1767714647783,-189.0,0.00022603,7]
[400555577,1767714647792,-3988.65402246,0.00022718,2]
[400555578,1767714647802,-433.48284904,0.00022721,25]
[400555579,1767714647811,-282.75253431,0.00022721,25]
[400555580,1767714647821,-207.32345154,0.00022721,25]
[400555581,1767714647830,-515.92926968,0.00022721,25]
[400555582,1767714647840,-2000.0,0.00022765,7]
[400555583,1767714647850,-274.33604987,0.00022855,32]
[400555584,1767714647860,-433.48284904,0.00022855,32]
[400555585,1767714647873,-282.75253431,0.00022855,32]
[400555586,1767714647883,-207.32345154,0.00022855,32]
[400555587,1767714647893,-515.92926968,0.00022855,32]
[400555588,1767714647902,-282.75253431,0.0002299,40]
[400555589,1767714647915,-433.48284904,0.0002299,40]
[400555590,1767714647925,-207.32345154,0.0002299,40]
[400555591,1767714647935,-515.92926968,0.0002299,40]
[400555592,1767714647945,-1676.0,0.00023,5]
[400555593,1767714647955,-10000.0,0.00023,2]
[400555594,1767714647964,-10000.0,0.00023,2]
[400555595,1767714647974,-166.0,0.00023,7]
[400555596,1767714647984,-184.0,0.00023,7]
[400555597,1767714647993,-151.0,0.00023,2]
[400555598,1767714648003,-151.0,0.00023,2]
[400555599,1767714648011,-151.0,0.00023,2]
[400555600,1767714648021,-151.0,0.00023,2]
[400555601,1767714648030,-735.173477,0.00023,2]
[400555602,1767714648039,-450.0,0.00023014,2]
[400555603,1767714648049,-243.68363741,0.00023072,56]
[400555604,1767714648059,-274.33604987,0.00023124,48]
[400555605,1767714648068,-433.48284904,0.00023124,48]
[400555606,1767714648077,-282.75253431,0.00023124,48]
[400555607,1767714648087,-207.32345154,0.00023124,48]
[400555608,1767714648097,-515.92926968,0.00023124,48]
[400555609,1767714648106,-475.0,0.00023141,7]
[400555610,1767714648116,-475.0,0.00023141,7]
[400555611,1767714648125,-2100.0,0.00023152,2]
[400555612,1767714648135,-2100.0,0.00023181,2]
[400555613,1767714648145,-3289.6,0.000232,7]
[400555614,1767714648155,-500.0,0.00023207,2]
[400555615,1767714648165,-500.0,0.0002321,2]
[400555616,1767714648174,-500.0,0.0002322,2]
[400555617,1767714648184,-2100.0,0.00023227,2]
[400555618,1767714648193,-475.0,0.00023244,7]
[400555619,1767714648203,-500.0,0.00023249,2]
[400555620,1767714648212,-500.0,0.00023255,2]
[400555621,1767714648222,-433.48284904,0.00023258,56]
[400555622,1767714648231,-282.75253431,0.00023258,56]
[400555623,1767714648241,-207.32345154,0.00023258,56]
[400555624,1767714648251,-515.92926968,0.00023258,56]
[400555625,1767714648260,-171.97642321,0.00023258,56]
[400555626,1767714648270,-243.6836374,0.00023306,110]
[400555627,1767714648279,-500.0,0.00023373,2]
[400555628,1767714648289,-2100.0,0.0002338,2]
[400555629,1767714648298,-589.45473351,0.00023381,2]
[400555630,1767714648308,-274.33604987,0.00023392,63]
[400555631,1767714648317,-282.75253431,0.00023392,63]
[400555632,1767714648327,-433.48284904,0.00023392,63]
[400555633,1767714648336,-207.32345154,0.00023392,63]
[400555634,1767714648346,-515.92926968,0.00023392,63]
[400555635,1767714648355,-2000.0,0.00023422,7]
[400555636,1767714648365,-2100.0,0.00023424,2]
[400555637,1767714648375,-274.33604984,0.00023493,110]
[400555638,1767714648384,-433.48284904,0.00023527,71]
[400555639,1767714648393,-282.75253431,0.00023527,71]
[400555640,1767714648403,-515.92926968,0.00023527,71]
[400555641,1767714648413,-207.32345154,0.00023527,71]
[400555642,1767714648422,-600.0,0.00023562,2]
[400555643,1767714648432,-2100.0,0.00023589,2]
[400555644,1767714648441,-274.33604987,0.00023661,79]
[400555645,1767714648451,-433.48284904,0.00023661,79]
[400555646,1767714648460,-282.75253431,0.00023661,79]
[400555647,1767714648469,-515.92926968,0.00023661,79]
[400555648,1767714648479,-207.32345154,0.00023661,79]
[400555649,1767714648489,-2100.0,0.00023692,2]
[400555650,1767714648498,-545.251366,0.000237,2]
[400555651,1767714648507,-545.251366,0.000237,2]
[400555652,1767714648517,-545.251366,0.000237,2]
[400555653,1767714648527,-545.251357,0.000237,2]
[400555654,1767714648536,-2100.0,0.00023714,2]
[400555655,1767714648545,-500.0,0.00023772,2]
[400555656,1767714648554,-1364.98834198,0.00023793,18]
[400555657,1767714648563,-433.48284904,0.00023795,86]
[400555658,1767714648573,-282.75253431,0.00023795,86]
[400555659,1767714648582,-515.92926968,0.00023795,86]
[400555660,1767714648591,-207.32345154,0.00023795,86]
[400555661,1767714648601,-2817.21,0.000238,14]
[400555662,1767714648610,-500.0,0.00023829,2]
[400555663,1767714648620,-500.0,0.00023864,2]
[400555664,1767714648629,-2100.0,0.00023877,2]
[400555665,1767714648638,-500.0,0.00023891,2]
[400555666,1767714648648,-1959.426,0.000239,2]
[400555667,1767714648657,-1959.426,0.000239,2]
[400555668,1767714648667,-26028.52,0.000239,2]
[400555669,1767714648677,-151.0,0.000239,2]
[400555670,1767714648686,-151.0,0.000239,2]
[400555671,1767714648696,-153.811128,0.000239,2]
[400555672,1767714648706,-151.0,0.000239,2]
[400555673,1767714648715,-151.0,0.000239,2]
[400555674,1767714648724,-194.712966,0.000239,2]
[400555675,1767714648734,-194.712966,0.000239,2]
[400555676,1767714648743,-194.712966,0.000239,2]
[400555677,1767714648752,-194.712966,0.000239,2]
[400555678,1767714648761,-279.35774616,0.00023929,2]
[400555679,1767714648771,-274.33604987,0.00023929,94]
[400555680,1767714648780,-433.48284904,0.00023929,94]
[400555681,1767714648789,-282.75253431,0.00023929,94]
[400555682,1767714648798,-515.92926968,0.00023929,94]
[400555683,1767714648807,-207.32345154,0.00023929,94]
[400555684,1767714648816,-2100.0,0.00023947,2]
[400555685,1767714648825,-2100.0,0.00023962,2]
[400555686,1767714648834,-500.0,0.00023966,2]
[400555687,1767714648844,-151.0,0.00023982,2]
[400555688,1767714648853,-151.0,0.00023982,2]
[400555689,1767714648865,-151.0,0.00023982,2]
[400555690,1767714648875,-151.0,0.00023982,2]
[400555691,1767714648884,-151.0,0.00023982,2]
[400555692,1767714648893,-151.0,0.00023982,2]
[400555693,1767714648902,-151.0,0.00023982,2]
[400555694,1767714648911,-159.089641,0.00023982,2]
[400555695,1767714648921,-1734.44849913,0.00024,2]
[400555696,1767714648930,-465.37081219,0.00024,2]
[400555697,1767714648941,-217.0,0.00024,2]
[400555698,1767714648950,-3899.999999,0.00024,2]
[400555699,1767714648959,-10000.0,0.00024,2]
[400555700,1767714648968,-10000.0,0.00024,2]
[400555701,1767714648978,-1041.66666667,0.00024,7]
[400555702,1767714648988,-272.36,0.00024,7]
[400555703,1767714648997,-320.04,0.00024,7]
[400555704,1767714649008,-1041.66666667,0.00024,7]
[400555705,1767714649017,-1000.0,0.00024,10]
[400555706,1767714649028,-1000.0,0.00024,10]
[400555707,1767714649037,-579.0,0.00024,10]
[400555708,1767714649047,-251.543708,0.00024,2]
[400555709,1767714649057,-251.543708,0.00024,2]
[400555710,1767714649066,-251.543708,0.00024,2]
[400555711,1767714649075,-251.543708,0.00024,2]
[400555712,1767714649085,-151.0,0.00024,2]
[400555713,1767714649095,-151.0,0.00024,2]
[400555714,1767714649104,-164.608793,0.00024,2]
[400555715,1767714649113,-164.144536,0.00024,2]
[400555716,1767714649122,-151.0,0.00024,2]
[400555717,1767714649132,-164.144536,0.00024,2]
[400555718,1767714649141,-164.144536,0.00024,2]
[400555719,1767714649150,-164.144536,0.00024,2]
[400555720,1767714649159,-181.542051,0.00024,2]
[400555721,1767714649168,-181.542051,0.00024,2]
[400555722,1767714649178,-181.542051,0.00024,2]
[400555723,1767714649187,-181.542051,0.00024,2]
[400555724,1767714649196,-151.0,0.00024,2]
[400555725,1767714649205,-655.31642,0.00024,2]
[400555726,1767714649214,-655.31642,0.00024,2]
[400555727,1767714649223,-655.31642,0.00024,2]
[400555728,1767714649232,-655.31642,0.00024,2]
[400555729,1767714649242,-151.0,0.00024,2]
[400555730,1767714649250,-244.094588,0.00024,2]
[400555731,1767714649259,-213.83934,0.00024,2]
[400555732,1767714649270,-151.0,0.00024,2]
[400555733,1767714649280,-280.749142,0.00024,2]
[400555734,1767714649289,-280.749142,0.00024,2]
[400555735,1767714649298,-280.749142,0.00024,2]
[400555736,1767714649307,-280.749133,0.00024,2]
[400555737,1767714649316,-269.170699,0.00024,2]
[400555738,1767714649325,-269.170699,0.00024,2]
[400555739,1767714649334,-269.170699,0.00024,2]
[400555740,1767714649345,-269.170708,0.00024,2]
[400555741,1767714649449,-151.0,0.00024,2]
[400555742,1767714649458,-193.586087,0.00024,2]
[400555743,1767714649467,-151.0,0.00024,2]
[400555744,1767714649476,-245.644172,0.00024,2]
[400555745,1767714649485,-193.586087,0.00024,2]
[400555746,1767714649494,-193.586087,0.00024,2]
[400555747,1767714649504,-193.586082,0.00024,2]
[400555748,1767714649513,-151.0,0.00024,2]
[400555749,1767714649524,-151.0,0.00024,2]
[400555750,1767714649533,-1041.66666667,0.00024,10]
[400555751,1767714649542,-618.008304,0.00024,2]
[400555752,1767714649551,-618.008304,0.00024,2]
[400555753,1767714649560,-618.008304,0.00024,2]
[400555754,1767714649569,-618.008305,0.00024,2]
[400555755,1767714649578,-5000.0,0.00024,2]
[400555756,1767714649587,-5000.0,0.00024,2]
[400555757,1767714649596,-5000.0,0.00024,2]
[400555758,1767714649605,-5000.0,0.00024,2]
[400555759,1767714649614,-176.786529,0.00024,2]
[400555760,1767714649624,-176.786529,0.00024,2]
[400555761,1767714649633,-176.786529,0.00024,2]
[400555762,1767714649643,-176.786525,0.00024,2]
[400555763,1767714649652,-151.0,0.00024,2]
[400555764,1767714649661,-151.0,0.00024,2]
[400555765,1767714649670,-2100.0,0.00024015,2]
[400555766,1767714649680,-500.0,0.00024015,2]
[400555767,1767714649689,-2100.0,0.00024038,2]
[400555768,1767714649698,-2100.0,0.00024055,2]
[400555769,1767714649707,-433.48284904,0.00024064,102]
[400555770,1767714649716,-282.75253431,0.00024064,102]
[400555771,1767714649725,-515.92926968,0.00024064,102]
[400555772,1767714649734,-207.32345154,0.00024064,102]
[400555773,1767714649743,-2100.0,0.00024078,2]
[400555774,1767714649750,-2000.0,0.0002408,7]
[400555775,1767714649759,-1959.426,0.000241,5]
[400555776,1767714649768,-3289.6,0.000241,7]
[400555777,1767714649776,-1020.73276343,0.000241,2]
[400555778,1767714649785,-500.0,0.00024101,2]
[400555779,1767714649793,-500.0,0.00024102,2]
[400555780,1767714649803,-750.0,0.0002411,2]
[400555781,1767714649812,-500.0,0.00024137,2]
[400555782,1767714649822,-212.54773642,0.00024141,2]
[400555783,1767714649831,-176608.56446121,0.00024142,2]
[400555784,1767714649842,-331596.20781339,0.00024142,2]
[400555785,1767714649851,-3153.30416945,0.00024142,2]
[400555786,1767714649860,-152.80579,0.00024142,2]
[400555787,1767714649873,-151.0,0.00024142,2]
[400555788,1767714649883,-151.0,0.00024142,2]
[400555789,1767714649892,-151.0,0.00024142,2]
[400555790,1767714649902,-194.712966,0.00024142,2]
[400555791,1767714649914,-194.712966,0.00024142,2]
[400555792,1767714649923,-194.712966,0.00024142,2]
[400555793,1767714649933,-194.712974,0.00024142,2]
[400555794,1767714649942,-151.0,0.00024142,2]
[400555795,1767714649951,-151.0,0.00024142,2]
[400555796,1767714649960,-151.0,0.00024142,2]
[400555797,1767714649970,-151.0,0.00024142,2]
[400555798,1767714649978,-251.543708,0.00024142,2]
[400555799,1767714649988,-251.543708,0.00024142,2]
[400555800,1767714649997,-251.543708,0.00024142,2]
[400555801,1767714650006,-251.543705,0.00024142,2]
[400555802,1767714650015,-151.0,0.00024142,2]
[400555803,1767714650024,-151.0,0.00024142,2]
[400555804,1767714650034,-151.0,0.00024142,2]
[400555805,1767714650043,-151.0,0.00024142,2]
[400555806,1767714650052,-199.109575,0.00024142,2]
[400555807,1767714650062,-164.144536,0.00024142,2]
[400555808,1767714650072,-151.0,0.00024142,2]
[400555809,1767714650081,-164.144536,0.00024142,2]
[400555810,1767714650090,-164.144536,0.00024142,2]
[400555811,1767714650099,-164.144528,0.00024142,2]
[400555812,1767714650108,-181.542051,0.00024142,2]
[400555813,1767714650118,-181.542051,0.00024142,2]
[400555814,1767714650127,-181.542051,0.00024142,2]
[400555815,1767714650136,-181.5420446,0.00024142,2]
[400555816,1767714650146,-151.0,0.00024142,2]
[400555817,1767714650155,-655.31642,0.00024142,2]
[400555818,1767714650164,-655.31642,0.00024142,2]
[400555819,1767714650173,-655.31642,0.00024142,2]
[400555820,1767714650182,-655.31641,0.00024142,2]
[400555821,1767714650191,-151.0,0.00024142,2]
[400555822,1767714650200,-151.0,0.00024142,2]
[400555823,1767714650209,-500.0,0.00024155,2]
[400555824,1767714650219,-166.0,0.00024164,7]
[400555825,1767714650228,-587.58501506,0.00024184,2]
[400555826,1767714650236,-433.48284904,0.00024198,110]
[400555827,1767714650244,-171.97642321,0.00024198,110]
[400555828,1767714650255,-203.01,0.00024199,2]
[400555829,1767714650265,-185.15,0.000242,2]
[400555830,1767714650275,-2100.0,0.00024201,2]
[400555831,1767714650285,-2100.0,0.00024222,2]
[400555832,1767714650294,-2100.0,0.00024238,2]
[400555833,1767714650303,-191.0,0.00024247,12]
[400555834,1767714650312,-2100.0,0.0002425,2]
[400555835,1767714650321,-2100.0,0.00024253,2]
[400555836,1767714650330,-500.0,0.00024288,2]
[400555837,1767714650339,-2100.0,0.00024411,2]
[400555838,1767714650348,-2100.0,0.00024442,2]
[400555839,1767714650357,-2100.0,0.0002451,2]
[400555840,1767714650366,-500.0,0.00024623,2]
[400555841,1767714650375,-500.0,0.00024623,2]
[400555842,1767714650385,-500.0,0.00024623,2]
[400555843,1767714650394,-500.0,0.00024623,2]
[400555844,1767714650403,-500.0,0.00024623,2]
[400555845,1767714650413,-500.0,0.00024623,2]
[400555846,1767714650422,-500.0,0.00024623,2]
[400555847,1767714650432,-500.0,0.00024623,2]
[400555848,1767714650440,-500.0,0.00024623,2]
[400555849,1767714650448,-500.0,0.00024623,2]
[400555850,1767714650457,-500.0,0.00024623,2]
[400555851,1767714650466,-500.0,0.00024623,2]
[400555852,1767714650474,-500.0,0.00024623,2]
[400555853,1767714650483,-500.0,0.00024623,2]
[400555854,1767714650492,-500.0,0.00024623,2]
[400555855,1767714650501,-500.0,0.00024623,2]
[400555856,1767714650512,-511.14869574,0.00024623,2]
[400555857,1767714650521,-154646.1630185,0.0002465,2]
[400555858,1767714650531,-513.71639582,0.0002465,2]
[400555859,1767714650541,-2053.69682378,0.0002465,2]
[400555860,1767714650550,-2100.0,0.00024651,2]
[400555861,1767714650559,-900.0,0.00024658,2]
[400555862,1767714650568,-200.0,0.00024658,2]
[400555863,1767714650578,-417.0,0.00024658,2]
[400555864,1767714650587,-79612.2650863,0.000247,3]
[400555865,1767714650597,-2100.0,0.00024706,2]
[400555866,1767714650607,-2000.0,0.00024738,7]
[400555867,1767714650616,-16819.15259793,0.00024774,2]
[400555868,1767714650626,-417.0,0.00024795,2]
[400555869,1767714650635,-415556.43095,0.000248,2]
[400555870,1767714650645,-500.0,0.00024802,2]
[400555871,1767714650654,-500.0,0.00024812,2]
[400555872,1767714650663,-500.0,0.00024859,2]
[400555873,1767714650673,-2100.0,0.00024894,2]
[400555874,1767714650683,-250.0,0.000249,2]
[400555875,1767714650692,-250.0,0.000249,2]
[400555876,1767714650702,-250.0,0.000249,2]
[400555877,1767714650711,-250.0,0.000249,2]
[400555878,1767714650720,-250.0,0.000249,2]
[400555879,1767714650729,-250.0,0.000249,2]
[400555880,1767714650738,-250.0,0.000249,2]
[400555881,1767714650747,-250.0,0.000249,2]
[400555882,1767714650757,-206.8,0.000249,2]
[400555883,1767714650766,-640933.194876,0.000249,2]
[400555884,1767714650776,-628.0,0.00024909,2]
[400555885,1767714650785,-1365.0,0.00024909,2]
[400555886,1767714650794,-2145.0,0.00024909,2]
[400555887,1767714650804,-417.0,0.00024909,2]
[400555888,1767714650813,-417.0,0.00024932,2]
[400555889,1767714650822,-1205.834353,0.0002498,5]
[400555890,1767714650831,-1084.65761068,0.00025,2]
[400555891,1767714650841,-2672.5907492,0.00025,2]
[400555892,1767714650851,-10364.0,0.00025,2]
[400555893,1767714650860,-150.0,0.00025,2]
[400555894,1767714650873,-500.0,0.00025,2]
[400555895,1767714650883,-1000.0,0.00025,2]
[400555896,1767714650892,-150.0,0.00025,2]
[400555897,1767714650901,-666.8009318,0.00025,2]
[400555898,1767714650912,-152.0,0.00025,2]
[400555899,1767714650921,-110895.99725138,0.00025,15]
[400555900,1767714650930,-632.66233801,0.00025,15]
[400555901,1767714650942,-20000.0,0.00025,3]
[400555902,1767714650954,-504.93984609,0.00025,2]
[400555903,1767714650963,-520.6,0.00025,30]
[400555904,1767714650973,-300.0,0.00025,30]
[400555905,1767714650982,-6963.0,0.00025,3]
[400555906,1767714650991,-3289.6,0.00025,7]
[400555907,1767714651001,-758.94232624,0.00025,2]
[400555908,1767714651010,-1000.0,0.00025,5]
[400555909,1767714651019,-1041.66666667,0.00025,3]
[400555910,1767714651028,-2100.0,0.00025008,7]
[400555911,1767714651038,-5000.0,0.00025034,6]
[400555912,1767714651048,-2100.0,0.00025036,7]
[400555913,1767714651057,-500.0,0.00025052,7]
[400555914,1767714651066,-417.0,0.00025069,2]
[400555915,1767714651076,-3964.20106546,0.00025083,7]
[400555916,1767714651086,-2817.21,0.000251,14]
[400555917,1767714651096,-1019.0,0.000251,2]
[400555918,1767714651107,-579.71495069,0.000252,5]
[400555919,1767714651117,-26028.52,0.000252,2]
[400555920,1767714651126,-250.0,0.00025205,2]
[400555921,1767714651136,-880.39814706,0.00025205,2]
[400555922,1767714651145,-417.0,0.00025206,2]
[400555923,1767714651154,-272.36,0.000253,7]
[400555924,1767714651163,-320.04,0.000253,7]
[400555925,1767714651173,-1551.71957584,0.00025326,21]
[400555926,1767714651182,-420.194198,0.00025342,2]
[400555927,1767714651191,-417.0,0.00025343,2]
[400555928,1767714651201,-636.40245565,0.00025381,2]
[400555929,1767714651210,-2000.0,0.00025396,7]
[400555930,1767714651220,-900.0,0.00025469,3]
[400555931,1767714651229,-417.0,0.0002548,2]
[400555932,1767714651240,-1000.0,0.000255,2]
[400555933,1767714651250,-9874.50222365,0.00025526,2]
[400555934,1767714651261,-417.0,0.00025617,2]
[400555935,1767714651270,-13268.7,0.000257,3]